bitfinex/quotes_ETHUSD_20230119
["timestamp","ask_amount","ask_price","bid_price","bid_amount"]
[1674139132787,4.543e-05,1528.3,1528.2,34.04963037]
[1674139133141,0.15349566,1528.4,1528.3,1.0]
[1674139133349,0.15349566,1528.4,1528.3,25.50159304]
[1674139133502,0.15349566,1528.4,1528.3,25.56759304]
[1674139133960,0.05349566,1528.4,1528.3,25.56759304]
[1674139136142,0.00049566,1528.4,1528.3,28.56759304]
[1674139137142,0.00049566,1528.4,1528.3,31.99581887]
[1674139137302,0.00049566,1528.4,1528.3,32.48671887]
[1674139137513,0.00049566,1528.4,1528.3,31.99581887]
[1674139141503,0.00049566,1528.4,1528.3,29.26581887]
[1674139141767,0.00049566,1528.4,1528.3,27.20059304]
[1674139142996,0.00049566,1528.4,1528.3,34.11029947]
[1674139143412,0.16638361,1528.6,1528.3,35.47729947]
[1674139143636,0.26606562,1529.2,1528.9,2.03954433]
[1674139143845,0.064,1529.5,1529.1,2.00531802]
[1674139144057,7.84033828,1529.8,1529.4,1.367]
[1674139144058,0.31657416,1529.8,1529.4,1.367]
[1674139144307,0.31657416,1529.8,1529.5,0.1367]
[1674139144308,0.25057416,1529.8,1529.5,0.1367]
[1674139144523,0.25057416,1529.8,1529.5,26.28866]
[1674139144730,0.25057416,1529.8,1529.5,26.35466]
[1674139145109,0.25057416,1529.8,1529.6,1.0]
[1674139145470,0.25057416,1529.8,1529.7,19.61166]
[1674139145684,0.25057416,1529.8,1529.7,19.67766]
[1674139145848,0.25057416,1529.8,1529.7,20.67766]
[1674139146369,0.25057416,1529.8,1529.7,22.62312502]
[1674139146943,0.25057416,1529.8,1529.7,19.49308623]
[1674139147513,0.25057416,1529.8,1529.7,6.41864623]
[1674139147877,0.25057416,1529.8,1529.7,12.95586623]
[1674139148093,0.25057416,1529.8,1529.7,14.90518685]
[1674139148245,0.25057416,1529.8,1529.7,16.85065187]
[1674139149136,0.25057416,1529.8,1529.7,21.21765187]
[1674139151605,0.25057416,1529.8,1529.7,19.85065187]
[1674139151816,0.25057416,1529.8,1529.7,21.21765187]
[1674139153083,0.4972,1530.3,1529.7,22.58465187]
[1674139153348,0.4472,1530.3,1529.9,1.367]
[1674139153670,0.007,1530.4,1530.0,22.52313905]
[1674139153877,0.007,1530.4,1530.0,22.58913905]
[1674139154201,0.33121637,1530.6,1530.0,23.95613905]
[1674139154412,0.016,1530.7,1530.3,1.90701701]
[1674139154718,5.602,1531.0,1530.4,26.1366]
[1674139154890,0.306,1530.9,1530.4,26.2026]
[1674139155113,0.306,1530.9,1530.4,28.07119161]
[1674139155294,3.49,1531.0,1530.5,1.86859161]
[1674139155662,2.95,1531.0,1530.4,30.67571916]
[1674139155833,2.95,1531.0,1530.4,26.2026]
[1674139156046,4.316,1531.0,1530.4,26.2026]
[1674139156385,1.0,1530.9,1530.4,19.66845]
[1674139156593,1.49,1530.9,1530.4,19.66845]
[1674139156766,0.149,1530.8,1530.4,19.66845]
[1674139157472,0.49,1530.9,1530.4,19.66845]
[1674139157813,0.49,1530.9,1530.4,21.03545]
[1674139158503,0.49,1530.9,1530.4,19.66845]
[1674139159531,1.0,1530.8,1530.4,19.66845]
[1674139160394,1.0,1530.8,1530.4,0.066]
[1674139160395,1.8431,1530.7,1530.4,0.066]
[1674139160547,1.9431,1530.7,1530.3,6.60057]
[1674139161600,1.0,1530.6,1530.3,6.60057]
[1674139161827,0.5901,1530.7,1530.3,6.60057]
[1674139163702,4.64674759,1530.6,1530.3,0.066]
[1674139163918,2.31687476,1530.5,1530.2,0.066]
[1674139164262,2.31687476,1530.5,1530.1,6.60118]
[1674139165069,0.95487476,1530.5,1530.1,6.60118]
[1674139165331,0.4902,1530.5,1530.1,13.1367]
[1674139165866,0.4901,1530.6,1530.1,13.1367]
[1674139166662,0.5561,1530.8,1530.1,16.39190604]
[1674139166870,0.4901,1530.8,1530.2,2.9971906]
[1674139167125,0.4901,1530.8,1530.3,19.60322]
[1674139167335,0.4901,1530.8,1530.3,19.66922]
[1674139167640,5.36409,1530.8,1530.3,2.33264106]
[1674139167795,5.38009,1530.8,1530.3,19.60322]
[1674139168002,5.38009,1530.8,1530.3,19.66922]
[1674139168431,0.5061,1530.8,1530.4,2.361]
[1674139168716,18.4698,1530.9,1530.5,13.06744]
[1674139168909,0.506,1530.9,1530.5,13.13344]
[1674139169123,0.49,1530.9,1530.5,13.13344]
[1674139170479,6.016,1531.0,1530.5,16.35776351]
[1674139170480,3.016,1531.0,1530.5,16.35776351]
[1674139170694,2.95,1531.0,1530.5,16.35776351]
[1674139170908,2.95,1531.0,1530.6,3.2140557]
[1674139171076,2.95,1531.0,1530.8,1.359]
[1674139171290,2.95,1531.0,1530.9,6.5321]
[1674139171479,2.95,1531.0,1530.9,13.1302]
[1674139172270,2.95,1531.0,1530.9,0.066]
[1674139172436,2.95,1531.0,1530.8,6.59816]
[1674139172649,2.95,1531.0,1530.8,0.066]
[1674139172876,3.27152164,1531.0,1530.7,6.59887]
[1674139173230,3.27152164,1531.0,1530.7,0.066]
[1674139173393,4.65074759,1530.9,1530.6,0.066]
[1674139173585,0.46507476,1530.8,1530.4,6.60016]
[1674139173930,11.40137235,1530.8,1530.4,0.066]
[1674139174105,1.14013724,1530.7,1530.3,6.60038]
[1674139174575,1.14013724,1530.7,1530.3,13.13504]
[1674139174753,0.5561,1530.8,1530.3,16.01643756]
[1674139174973,3.49,1530.9,1530.3,15.01643756]
[1674139175154,3.82752164,1531.0,1530.5,1.0]
[1674139175364,2.95,1531.0,1530.5,14.0672]
[1674139175620,2.95,1531.0,1530.5,14.1332]
[1674139176021,2.952,1531.0,1530.5,14.1312]
[1674139176238,2.95,1531.0,1530.5,14.1332]
[1674139176448,2.95,1531.0,1530.5,16.48547438]
[1674139176764,2.95,1531.0,1530.5,18.34553008]
[1674139176982,2.95,1531.0,1530.6,1.8600557]
[1674139177163,2.95,1531.0,1530.9,1.0]
[1674139177531,2.95,1531.0,1530.9,21.67458723]
[1674139177729,2.95,1531.0,1530.9,21.74058723]
[1674139178120,2.95,1531.0,1530.9,19.8976]
[1674139178339,2.95,1531.0,1530.9,6.5981]
[1674139178552,2.95,1531.0,1530.9,0.066]
[1674139178785,2.95,1531.0,1530.8,6.59841]
[1674139179000,2.95,1531.0,1530.8,0.066]
[1674139179149,3.27152164,1531.0,1530.7,6.59867]
[1674139179691,2.95,1531.0,1530.7,13.13162]
[1674139181095,2.95,1531.0,1530.8,1.0]
[1674139181412,2.95,1531.0,1530.9,19.5963]
[1674139181570,2.95,1531.0,1530.9,19.6623]
[1674139181773,2.95,1531.0,1530.9,22.04945539]
[1674139182848,2.95,1531.0,1530.9,25.24544262]
[1674139183077,2.95,1531.0,1530.9,27.09644262]
[1674139183263,2.95,1531.0,1530.9,30.09644262]
[1674139183476,2.95,1531.0,1530.9,29.60644262]
[1674139183901,2.26925279,1531.0,1530.9,29.60644262]
[1674139184089,1.05903683,1531.0,1530.9,29.60644262]
[1674139184328,0.26521637,1531.1,1530.9,29.60644262]
[1674139184329,0.26521637,1531.2,1531.0,4.01964426]
[1674139184673,0.28121637,1531.4,1531.0,4.01964426]
[1674139184674,0.26521637,1531.4,1531.1,35.6531888]
[1674139184884,0.22912476,1531.8,1531.3,8.72539287]
[1674139185200,3.34945336,1532.4,1531.3,8.72539287]
[1674139185201,4.45498797,1533.1,1531.7,0.56484967]
[1674139185365,3.96242328,1534.0,1532.9,1.36253975]
[1674139185558,0.64045948,1534.4,1533.2,13.0446]
[1674139185773,0.26524326,1535.4,1535.3,1.7412]
[1674139185978,0.26524326,1535.4,1535.1,0.06]
[1674139185979,3.78479526,1535.4,1535.1,0.06]
[1674139186245,0.06,1535.6,1535.3,13.37]
[1674139186417,0.062,1536.2,1535.4,13.02576]
[1674139186607,3.0,1536.1,1535.6,19.53531]
[1674139186818,3.0,1536.1,1535.6,0.002]
[1674139186819,1.62634063,1536.1,1535.6,0.002]
[1674139187029,1.62634063,1536.1,1533.6,1.368]
[1674139187030,8.0,1535.8,1534.7,9.73809]
[1674139187280,5.0,1535.6,1535.1,6.51422]
[1674139187465,28.61976063,1535.2,1535.1,6.32702]
[1674139187708,16.13530479,1535.2,1533.6,11.93068992]
[1674139187883,16.13530479,1535.2,1534.2,6.5179]
[1674139187884,2.449,1535.0,1534.2,6.5179]
[1674139188094,8.0,1534.3,1534.2,0.066]
[1674139188411,8.0,1534.3,1533.7,6.908]
[1674139188412,8.0655681,1534.3,1533.7,6.908]
[1674139188725,11.1101,1533.8,1533.7,0.014]
[1674139188959,17.9336481,1533.8,1533.0,0.06]
[1674139189196,13.04214,1533.5,1533.1,6.908]
[1674139189354,3.4892,1533.4,1533.1,6.974]
[1674139189571,1.355,1533.3,1533.1,0.066]
[1674139189785,1.355,1533.3,1533.0,0.066]
[1674139189786,0.4893,1533.2,1533.0,0.066]
[1674139190128,0.0655681,1533.4,1533.0,13.64285397]
[1674139190340,6.4385681,1533.7,1533.0,0.066]
[1674139190547,1.355,1533.4,1533.1,15.0]
[1674139190721,1.353,1533.2,1533.1,0.066]
[1674139190927,1.8423,1533.2,1532.9,16.36253975]
[1674139191136,0.4893,1533.1,1532.9,16.42853975]
[1674139191434,0.4893,1533.2,1532.9,16.42853975]
[1674139191623,0.46036202,1533.2,1532.9,15.066]
[1674139191980,1.4275681,1533.3,1533.0,15.0]
[1674139192241,0.0655681,1533.4,1533.2,15.0]
[1674139192410,1.0,1533.6,1533.3,11.03451033]
[1674139192411,0.9655681,1533.6,1533.3,11.03451033]
[1674139192621,0.9655681,1533.6,1533.3,0.066]
[1674139192869,0.9655681,1533.6,1533.4,15.0]
[1674139193087,0.4521,1533.8,1533.5,9.53451033]
[1674139193318,0.3861,1533.8,1533.5,9.60051033]
[1674139193615,0.3861,1533.8,1533.7,15.0]
[1674139193830,0.3861,1533.8,1533.7,24.60051033]
[1674139194293,0.002,1534.0,1533.8,0.64740282]
[1674139194512,1.353,1534.3,1533.9,24.53451033]
[1674139194840,1.362,1534.2,1533.9,0.066]
[1674139195055,13.03694,1534.1,1533.9,15.0]
[1674139195261,1.303694,1534.0,1533.9,15.066]
[1674139195477,9.184594,1534.0,1533.9,15.066]
[1674139195685,1.0,1533.9,1533.8,0.64740282]
[1674139196035,9.5545694,1533.9,1533.8,0.64740282]
[1674139196241,9.6205694,1533.9,1533.8,0.64740282]
[1674139196394,12.6205694,1533.9,1533.8,0.64740282]
[1674139196606,12.8505694,1533.9,1533.3,15.0]
[1674139196815,6.52073,1533.6,1533.5,15.0]
[1674139197025,6.58673,1533.6,1533.5,15.066]
[1674139197990,4.17055001,1533.6,1533.5,15.066]
[1674139198199,4.10455001,1533.6,1533.5,15.066]
[1674139198404,0.066,1533.7,1533.5,17.52605103]
[1674139198705,6.58532,1533.9,1533.5,17.52605103]
[1674139198942,0.066,1533.9,1533.8,15.0]
[1674139199179,6.51902,1534.0,1533.8,15.066]
[1674139199335,6.58502,1534.0,1533.8,15.066]
[1674139200021,6.58502,1534.0,1533.8,16.5726]
[1674139200248,6.51728,1534.4,1533.9,9.53451033]
[1674139200439,6.51728,1534.4,1534.3,15.0]
[1674139200440,0.066,1534.4,1534.3,15.0]
[1674139200653,0.058,1534.8,1534.3,15.066]
[1674139200654,6.51558,1534.8,1534.3,15.066]
[1674139200832,6.51558,1534.8,1534.3,16.6215]
[1674139200833,6.58158,1534.8,1534.3,16.6215]
[1674139201037,6.58158,1534.8,1534.7,15.0]
[1674139201251,6.58158,1534.8,1534.7,15.066]
[1674139202105,6.58158,1534.8,1534.7,0.066]
[1674139202301,1.0,1534.7,1534.3,15.0]
[1674139202722,1.362,1534.4,1534.3,15.066]
[1674139202892,6.5172,1534.4,1534.3,15.066]
[1674139203118,0.066,1534.4,1534.3,15.066]
[1674139203412,13.09998,1534.5,1534.3,15.066]
[1674139203570,0.066,1534.5,1534.3,15.066]
[1674139203775,6.58244,1534.6,1534.3,15.066]
[1674139203992,1.362,1534.8,1534.7,1.14146032]
[1674139203993,0.4659,1534.8,1534.7,1.14146032]
[1674139204253,0.066,1535.0,1534.7,16.14146032]
[1674139204414,0.5319,1535.1,1534.9,15.0]
[1674139204617,1.8279,1535.1,1534.9,15.066]
[1674139204827,0.4659,1535.1,1534.9,15.066]
[1674139205152,7.94189,1535.2,1534.9,15.066]
[1674139205153,0.066,1535.2,1534.9,15.066]
[1674139205361,0.066,1535.4,1535.0,15.0]
[1674139205612,6.51298,1535.4,1535.3,15.0]
[1674139205786,1.078964,1535.4,1535.3,0.066]
[1674139206154,0.066,1535.6,1535.3,15.0]
[1674139206305,6.56976,1535.7,1535.5,15.0]
[1674139206306,0.066,1535.7,1535.5,15.0]
[1674139206522,0.30113802,1536.0,1535.5,15.066]
[1674139206735,0.70073802,1536.0,1535.9,15.0]
[1674139206987,10.30966802,1536.0,1535.9,0.066]
[1674139207207,12.79020045,1536.0,1535.9,0.066]
[1674139207417,12.79020045,1536.0,1535.7,15.066]
[1674139207418,14.13589106,1536.0,1535.7,15.066]
[1674139207758,14.13589106,1536.0,1535.9,15.0]
[1674139207759,0.30113802,1536.0,1535.9,15.0]
[1674139208047,8.6919185,1536.4,1535.9,15.066]
[1674139208048,0.1259885,1536.4,1535.9,15.066]
[1674139208270,0.0599885,1536.4,1536.3,15.0]
[1674139208412,0.0599885,1536.4,1536.3,16.566]
[1674139208620,0.0599885,1536.4,1536.3,17.928]
[1674139208883,0.260518,1536.7,1536.3,19.29]
[1674139209098,0.22710873,1536.8,1536.6,28.01574]
[1674139209291,0.058,1537.6,1536.7,9.998774]
[1674139209477,0.058,1538.0,1537.5,15.0]
[1674139209672,6.5016,1538.1,1537.9,14.9799705]
[1674139209883,0.066,1538.1,1537.9,15.0459705]
[1674139210129,1.31965662,1538.2,1537.9,15.0459705]
[1674139210359,1.21965662,1538.2,1538.1,14.9599345]
[1674139210512,1.21965662,1538.2,1538.1,15.0259345]
[1674139210722,1.21965662,1538.2,1538.1,16.2279345]
[1674139210986,0.26679988,1538.2,1538.1,15.0259345]
[1674139211460,0.26679988,1538.2,1538.1,0.066]
[1674139211791,7.96989988,1538.2,1537.6,12.045964]
[1674139212002,1.522,1537.9,1537.3,0.06]
[1674139212200,7.96833,1537.7,1537.6,0.002]
[1674139212404,20.51155,1537.6,1536.9,0.056]
[1674139212614,13.01021,1537.3,1536.9,0.01]
[1674139212842,3.488,1537.2,1536.5,15.0259345]
[1674139213086,20.51725,1537.1,1536.5,15.0259345]
[1674139213237,13.01362,1536.9,1536.5,15.0259345]
[1674139213452,13.07962,1536.9,1536.5,15.0259345]
[1674139213766,13.07962,1536.9,1536.5,0.066]
[1674139213977,13.07962,1536.9,1536.3,14.9599345]
[1674139213978,6.50766,1536.7,1536.3,14.9599345]
[1674139214182,13.08132,1536.7,1536.3,15.0259345]
[1674139214608,13.73825243,1536.7,1536.3,0.059]
[1674139214823,19.52565,1536.5,1536.0,15.0189345]
[1674139215032,19.59165,1536.5,1536.0,0.059]
[1674139215294,0.066,1536.5,1536.2,14.9599345]
[1674139215511,0.066,1536.7,1536.4,14.9599345]
[1674139215827,1.0,1536.9,1536.4,0.059]
[1674139215972,8.157288,1536.9,1536.0,2.5204]
[1674139216183,8.157288,1536.9,1535.9,0.059]
[1674139216184,0.7181,1536.8,1535.9,0.059]
[1674139216408,6.50918,1536.3,1535.8,15.0189345]
[1674139216652,0.4883,1536.2,1535.8,15.0189345]
[1674139217080,6.57501,1536.4,1536.2,0.9766]
[1674139217291,0.066,1536.4,1536.2,0.9766]
[1674139217445,0.691,1536.5,1536.2,0.9766]
[1674139217654,6.50875,1536.4,1536.2,0.9766]
[1674139217885,2.95,1536.3,1536.2,0.9766]
[1674139218131,10.411615,1536.3,1536.2,0.9766]
[1674139218280,10.477615,1536.3,1536.2,0.9766]
[1674139218493,10.477615,1536.3,1536.2,0.30066956]
[1674139218722,10.707615,1536.3,1536.2,0.30066956]
[1674139218991,11.707615,1536.3,1536.2,0.30066956]
[1674139219340,11.707615,1536.3,1535.6,0.059]
[1674139219341,1.0,1536.2,1535.6,0.059]
[1674139219675,1.0,1536.2,1535.5,14.9599345]
[1674139219676,1.0,1536.0,1535.5,14.9599345]
[1674139219862,0.238,1535.9,1535.5,15.0189345]
[1674139220072,0.338,1535.9,1535.5,15.0189345]
[1674139220337,6.84886,1535.9,1535.5,0.059]
[1674139220565,3.52174759,1535.8,1535.3,14.9599345]
[1674139220866,13.02365,1535.7,1535.3,0.059]
[1674139221079,0.3041,1535.7,1535.3,14.9599345]
[1674139221247,6.51186,1535.7,1535.3,15.0189345]
[1674139221458,6.51186,1535.7,1535.5,14.9599345]
[1674139221459,0.066,1535.7,1535.5,14.9599345]
[1674139221670,9.74863,1536.0,1535.5,14.9599345]
[1674139221671,0.304,1536.0,1535.5,15.0189345]
[1674139221903,8.42608,1536.1,1535.7,14.9599345]
[1674139221904,0.066,1536.1,1535.7,14.9599345]
[1674139222215,0.238,1536.2,1535.7,15.0189345]
[1674139222383,3.52974759,1536.2,1535.7,15.0189345]
[1674139222592,1.0,1536.2,1535.7,15.0189345]
[1674139223034,0.304,1536.3,1535.7,15.0189345]
[1674139223248,6.5087,1536.5,1536.1,14.9599345]
[1674139223249,0.304,1536.5,1536.1,14.9599345]
[1674139223557,8.68397,1536.6,1536.1,15.0189345]
[1674139223913,10.99390759,1536.5,1536.1,15.0189345]
[1674139224125,3.29174759,1536.4,1536.1,3.0389705]
[1674139224338,0.10200001,1536.3,1536.1,2.9799705]
[1674139224648,0.066,1536.5,1536.3,0.10200001]
[1674139224862,1.2909289,1536.8,1536.3,0.10200001]
[1674139225011,1.42002179,1536.8,1536.3,0.10200001]
[1674139225506,0.42002179,1536.8,1536.3,0.10200001]
[1674139225671,0.2909289,1536.8,1536.3,0.10200001]
[1674139226034,0.2909289,1536.8,1536.4,14.9599345]
[1674139226354,0.2909289,1536.8,1536.4,15.0189345]
[1674139226571,0.2909289,1536.8,1536.4,6.56768]
[1674139226711,0.2909289,1536.8,1536.6,14.9599345]
[1674139227090,0.2909289,1536.8,1536.6,15.0189345]
[1674139227399,0.2909289,1536.8,1536.6,17.17163595]
[1674139227608,0.2909289,1536.8,1536.6,23.67944595]
[1674139227816,0.2909289,1536.8,1536.7,1.0]
[1674139228137,0.2909289,1536.8,1536.6,23.67933595]
[1674139228283,0.2909289,1536.8,1536.6,30.18520595]
[1674139228498,0.2909289,1537.1,1536.7,6.5067206]
[1674139228763,0.2909289,1537.1,1537.0,14.9599345]
[1674139228972,0.2909289,1537.1,1537.0,15.0189345]
[1674139229501,0.2909289,1537.6,1537.1,1.0]
[1674139229718,0.2909289,1537.6,1537.1,14.51280345]
[1674139230027,0.2909289,1537.6,1537.1,23.02623795]
[1674139230174,0.2909289,1537.6,1537.1,15.0189345]
[1674139230387,3.58267649,1537.6,1537.1,15.0189345]
[1674139230773,11.03387759,1537.5,1537.1,0.059]
[1674139230910,4.39513535,1537.4,1536.8,15.0189345]
[1674139231120,3.29174759,1537.3,1536.8,15.0189345]
[1674139231724,3.29174759,1537.2,1536.8,0.059]
[1674139231860,3.29174759,1537.1,1536.4,15.0189345]
[1674139232068,3.52984759,1537.0,1536.4,15.0189345]
[1674139232317,3.29174759,1536.9,1536.4,15.0189345]
[1674139232549,6.5722,1537.0,1536.4,15.0189345]
[1674139232763,3.35774759,1537.0,1536.6,14.9599345]
[1674139233069,1.0,1536.8,1536.6,15.0189345]
[1674139233264,9.86437759,1536.9,1536.6,14.9689345]
[1674139233475,0.066,1536.9,1536.6,14.9689345]
[1674139233663,1.07853321,1537.0,1536.6,14.9689345]
[1674139233871,3.39960091,1536.9,1536.6,0.059]
[1674139234081,3.39960091,1536.9,1536.5,2.9299705]
[1674139234726,3.88770091,1536.9,1536.5,2.9299705]
[1674139235166,10.39433091,1536.9,1536.5,2.9299705]
[1674139235330,4.33118068,1536.8,1536.5,2.9299705]
[1674139235541,10.83835068,1536.8,1536.4,12.038964]
[1674139235854,0.066,1536.8,1536.4,14.9689345]
[1674139236071,0.59595332,1536.9,1536.4,14.9689345]
[1674139236287,0.10785332,1536.9,1536.4,14.9689345]
[1674139236763,0.10785332,1536.9,1536.5,1.0]
[1674139236968,0.10785332,1536.9,1536.4,14.9689345]
[1674139237130,9.90628091,1536.9,1536.4,14.9689345]
[1674139237346,0.99062809,1536.8,1536.4,14.9669345]
[1674139237580,0.99062809,1536.8,1536.4,14.9689345]
[1674139237796,1.0,1536.7,1536.4,14.9689345]
[1674139237981,3.29174759,1536.6,1536.4,0.059]
[1674139238172,9.89964759,1536.6,1536.3,0.10200001]
[1674139238377,9.96564759,1536.6,1536.3,0.10200001]
[1674139239390,0.166,1536.6,1536.3,0.10200001]
[1674139239536,1.47872809,1536.8,1536.3,0.10200001]
[1674139239537,1.0,1536.7,1536.3,0.10200001]
[1674139239911,3.29174759,1536.7,1536.3,0.10200001]
[1674139240139,0.066,1536.8,1536.4,14.9099345]
[1674139240285,38.66206,1537.1,1536.7,14.9099345]
[1674139240286,0.066,1537.1,1536.7,14.9099345]
[1674139240491,0.554,1537.3,1536.7,14.9689345]
[1674139240841,6.50591,1537.1,1536.7,0.059]
[1674139241057,6.57191,1537.1,1536.5,14.9689345]
[1674139241694,0.066,1537.1,1536.8,14.9099345]
[1674139241904,0.066,1537.2,1536.8,14.9689345]
[1674139242060,3.29174759,1537.1,1536.8,0.059]
[1674139242270,3.29174759,1537.0,1536.6,14.9689345]
[1674139242520,6.5721,1537.1,1536.6,14.9689345]
[1674139242708,9.86384759,1537.1,1536.6,0.059]
[1674139242930,9.86384759,1537.1,1536.6,14.9099345]
[1674139242931,0.65721,1537.0,1536.6,14.9099345]
[1674139243156,0.65721,1537.0,1536.6,14.9689345]
[1674139243402,10.45513759,1537.0,1536.6,0.059]
[1674139243544,1.065721,1536.9,1536.4,14.9689345]
[1674139243764,7.572331,1536.9,1536.4,14.9689345]
[1674139243983,10.93007859,1536.9,1536.4,14.9689345]
[1674139244229,1.09300786,1536.8,1536.4,14.9689345]
[1674139245044,7.60023786,1536.8,1536.4,0.059]
[1674139245285,1.0,1536.7,1536.4,0.059]
[1674139245513,6.50759,1536.7,1536.3,0.10200001]
[1674139245728,0.650759,1536.6,1536.3,0.10200001]
[1674139246258,3.29174759,1536.5,1536.3,0.10200001]
[1674139246409,10.28876759,1536.4,1536.3,0.10200001]
[1674139246623,10.35476759,1536.4,1536.3,0.10200001]
[1674139246844,9.86646759,1536.4,1536.3,0.10200001]
[1674139247052,11.65278035,1536.4,1536.3,0.10200001]
[1674139248135,12.65278035,1536.4,1536.3,0.10200001]
[1674139248305,11.65278035,1536.4,1536.3,0.10200001]
[1674139248755,18.16150035,1536.4,1536.3,0.10200001]
[1674139249271,18.87980035,1536.4,1536.3,0.10200001]
[1674139250714,29.44473278,1536.4,1535.9,0.01328578]
[1674139250924,4.80974759,1536.2,1535.9,0.01328578]
[1674139251196,23.54011759,1536.1,1535.9,0.01328578]
[1674139251386,16.31256759,1536.0,1535.9,0.01328578]
[1674139251552,16.60856759,1536.0,1535.9,0.01328578]
[1674139251760,6.99839,1536.1,1536.0,1.14051201]
[1674139252026,10.35613759,1536.1,1536.0,1.14051201]
[1674139252919,9.86773759,1536.1,1536.0,1.14051201]
[1674139253172,11.55430835,1536.1,1536.0,1.14051201]
[1674139254130,0.066,1536.1,1536.0,1.14051201]
[1674139254322,0.066,1536.3,1536.0,1.14051201]
[1674139254651,6.5748,1536.4,1536.0,1.14051201]
[1674139254869,0.65748,1536.3,1536.0,1.14051201]
[1674139255021,0.066,1536.4,1536.1,14.9099345]
[1674139255230,6.99579,1536.7,1536.1,14.9099345]
[1674139255231,0.066,1536.7,1536.3,14.9099345]
[1674139255460,0.066,1536.8,1536.5,14.9099345]
[1674139255710,30.824,1537.1,1536.5,0.059]
[1674139255926,30.824,1537.1,1536.6,14.9099345]
[1674139255927,7.05982,1537.1,1536.6,14.9099345]
[1674139256070,0.705982,1537.0,1536.6,14.9689345]
[1674139257171,0.066,1537.1,1536.6,0.059]
[1674139257347,0.066,1537.2,1536.9,14.9099345]
[1674139257553,0.554,1537.3,1536.9,14.9689345]
[1674139257787,7.86714659,1537.3,1536.9,14.9669345]
[1674139258021,4.639399,1537.3,1536.9,14.9689345]
[1674139258174,4.573399,1537.3,1536.9,14.9689345]
[1674139258392,6.9627799,1537.2,1536.9,14.9689345]
[1674139258648,10.32052749,1537.2,1536.9,14.9689345]
[1674139259179,3.29174759,1537.1,1536.9,14.9689345]
[1674139259490,4.29174759,1537.1,1536.9,14.9689345]
[1674139259809,3.29174759,1537.1,1536.9,14.9689345]
[1674139259968,4.82292235,1537.0,1536.9,0.059]
[1674139260175,11.32910235,1537.0,1536.6,14.9689345]
[1674139260382,0.39517476,1537.0,1536.6,14.9689345]
[1674139260607,0.066,1537.1,1536.8,14.9099345]
[1674139260827,7.4507299,1537.2,1536.8,14.9689345]
[1674139260828,3.29174759,1537.0,1536.8,14.9689345]
[1674139261031,7.5167299,1537.2,1536.8,14.9689345]
[1674139261032,7.31721299,1537.1,1536.8,14.9689345]
[1674139261332,0.81107299,1537.1,1536.8,14.9689345]
[1674139261536,0.74507299,1537.1,1536.8,14.9689345]
[1674139261741,10.54266058,1537.1,1536.8,14.9689345]
[1674139262002,10.60866058,1537.1,1536.8,14.9689345]
[1674139262218,0.066,1537.1,1536.8,14.9689345]
[1674139262387,0.066,1537.2,1537.0,14.9099345]
[1674139262596,0.066,1537.2,1537.0,0.059]
[1674139262597,3.29174759,1537.2,1537.0,0.059]
[1674139262807,3.29174759,1537.1,1536.8,14.9689345]
[1674139263025,9.79756759,1537.1,1536.8,0.059]
[1674139263269,9.86356759,1537.1,1536.7,14.9099345]
[1674139263431,0.97975676,1537.0,1536.7,14.9689345]
[1674139263898,0.09797568,1536.9,1536.7,14.9669345]
[1674139264067,0.09797568,1536.9,1536.7,14.9689345]
[1674139264641,9.89634327,1536.9,1536.7,14.9689345]
[1674139264857,3.29174759,1536.8,1536.7,0.059]
[1674139265061,17.29542192,1536.8,1536.5,0.059]
[1674139265372,17.36142192,1536.8,1536.5,14.9099345]
[1674139265590,10.85440192,1536.8,1536.5,14.9689345]
[1674139265949,17.36142192,1536.8,1536.5,14.9689345]
[1674139266216,1.05563433,1536.8,1536.5,14.9689345]
[1674139266367,6.60464568,1536.9,1536.5,14.9689345]
[1674139266368,6.67064568,1536.9,1536.5,14.9689345]
[1674139266579,0.066,1536.9,1536.8,14.9099345]
[1674139266839,0.066,1537.0,1536.8,14.9689345]
[1674139267050,6.5715,1537.2,1536.8,14.9689345]
[1674139267260,11.21311759,1537.2,1536.8,14.9689345]
[1674139268627,17.71861759,1537.2,1536.8,14.9689345]
[1674139268850,1.0,1537.1,1536.8,14.9689345]
[1674139269000,6.50595,1537.1,1536.8,14.9689345]
[1674139269205,12.28615435,1537.1,1536.8,14.9689345]
[1674139269502,18.79210435,1537.1,1536.8,0.059]
[1674139269680,6.5066,1536.9,1536.7,14.9689345]
[1674139269895,16.37094759,1536.9,1536.7,0.059]
[1674139270048,16.37094759,1536.9,1536.5,14.9689345]
[1674139270253,3.29174759,1536.8,1536.5,0.059]
[1674139270502,6.83672476,1536.7,1536.5,14.9099345]
[1674139270764,6.90272476,1536.7,1536.5,14.9689345]
[1674139271158,0.066,1536.7,1536.5,14.9689345]
[1674139271369,13.07898,1537.0,1536.5,14.9689345]
[1674139271519,0.066,1537.0,1536.7,14.9099345]
[1674139271731,15.98838676,1537.1,1536.7,14.9689345]
[1674139271992,1.59883868,1537.0,1536.7,14.9689345]
[1674139272519,8.10502868,1537.0,1536.7,14.9689345]
[1674139272680,8.17102868,1537.0,1536.7,14.9689345]
[1674139272887,0.066,1537.0,1536.7,14.9689345]
[1674139273097,8.99431676,1537.1,1536.7,14.9689345]
[1674139273338,9.86360759,1537.1,1536.7,14.9689345]
[1674139273551,16.36967759,1537.1,1536.7,14.9689345]
[1674139273742,16.36967759,1537.1,1536.7,14.96580323]
[1674139273977,13.07793,1537.1,1536.7,14.96580323]
[1674139274185,0.066,1537.1,1536.9,14.90680323]
[1674139274541,0.066,1537.3,1536.9,14.96580323]
[1674139274670,6.57085,1537.4,1537.1,14.90680323]
[1674139274981,0.066,1537.4,1537.3,14.90680323]
[1674139275192,0.2909289,1537.6,1537.3,14.96580323]